fUST/lending_fUST_20250610
["ID","MTS","AMOUNT","RATE_DAILY","PERIOD"]
[365240709,1749561040802,-460.0,0.00021369,4]
[365240710,1749561040812,-400.0,0.00021369,4]
[365240711,1749561040822,-460.0,0.00021369,4]
[365240712,1749561040831,-390.0,0.00021369,4]
[365240713,1749561040841,-460.0,0.00021369,4]
[365240714,1749561040850,-400.0,0.00021369,4]
[365240715,1749561040859,-460.0,0.00021369,4]
[365240716,1749561040870,-691.63,0.00021369,4]
[365240717,1749561040879,-2508.23,0.00021369,4]
[365240718,1749561040888,-460.0,0.00021369,4]
[365240719,1749561040898,-460.0,0.00021369,4]
[365240720,1749561040908,-460.0,0.00021369,4]
[365240721,1749561040918,-460.0,0.00021369,4]
[365240722,1749561040927,-406.64667278,0.00021369,4]
[365240723,1749561040937,-1142.03,0.00021369,4]
[365240724,1749561040945,-460.0,0.00021369,4]
[365240725,1749561040955,-460.0,0.00021369,4]
[365240726,1749561040965,-764.17,0.00021369,4]
[365240727,1749561040974,-2970.71,0.00021369,4]
[365240728,1749561040984,-460.0,0.00021369,4]
[365240729,1749561040993,-460.0,0.00021369,4]
[365240730,1749561041003,-460.0,0.00021369,4]
[365240731,1749561041013,-2964.47,0.00021369,4]
[365240732,1749561041022,-1685.96,0.00021369,4]
[365240733,1749561041032,-603.4,0.00021369,4]
[365240734,1749561041041,-460.0,0.00021369,4]
[365240735,1749561041052,-273.2253248,0.00021369,4]
[365240736,1749561041061,-410.0,0.00021369,4]
[365240737,1749561041071,-741.45,0.00021369,2]
[365240738,1749561041080,-361.37039718,0.00021369,4]
[365240739,1749561041090,-460.0,0.00021369,4]
[365240740,1749561041099,-460.0,0.00021369,4]
[365240741,1749561041108,-460.0,0.00021369,4]
[365240742,1749561041117,-460.0,0.00021369,4]
[365240743,1749561041128,-291.27431669,0.00021369,4]
[365240744,1749561041140,-657.06,0.00021369,4]
[365240745,1749561041150,-400.0,0.00021369,4]
[365240746,1749561041160,-460.0,0.00021369,4]
[365240747,1749561041171,-460.0,0.00021369,4]
[365240748,1749561041181,-460.0,0.00021369,4]
[365240749,1749561041190,-460.0,0.00021369,4]
[365240750,1749561041200,-460.0,0.00021369,4]
[365240751,1749561041212,-1753.44,0.00021369,4]
[365240752,1749561041222,-460.0,0.00021369,4]
[365240753,1749561041232,-460.0,0.00021369,4]
[365240754,1749561041241,-460.0,0.00021369,4]
[365240755,1749561041251,-460.0,0.00021369,4]
[365240756,1749561041261,-2332.21,0.00021369,4]
[365240757,1749561041270,-151.0,0.00021369,4]
[365240758,1749561041281,-151.0,0.00021369,4]
[365240759,1749561041290,-500.0,0.00021369,4]
[365240760,1749561041301,-500.0,0.00021369,4]
[365240761,1749561041311,-151.0,0.00021369,4]
[365240762,1749561041320,-151.0,0.00021369,4]
[365240763,1749561041329,-500.0,0.00021369,4]
[365240764,1749561041338,-198.0,0.00021369,4]
[365240765,1749561041348,-151.0,0.00021369,4]
[365240766,1749561041357,-151.0,0.00021369,4]
[365240767,1749561041367,-151.0,0.00021369,4]
[365240768,1749561041376,-151.0,0.00021369,4]
[365240769,1749561041386,-500.0,0.00021369,4]
[365240770,1749561041395,-500.0,0.00021373,2]
[365240771,1749561041404,-500.0,0.00021373,2]
[365240772,1749561041413,-507.97057501,0.00021373,2]
[365240773,1749561041422,-504.25651522,0.00021373,2]
[365240774,1749561041431,-159.99641548,0.00021373,2]
[365240775,1749561041440,-500.0,0.00021373,2]
[365240776,1749561041450,-502.07791231,0.00021373,2]
[365240777,1749561041459,-500.0,0.00021373,2]
[365240778,1749561041469,-153.75662207,0.00021373,2]
[365240779,1749561041479,-500.0,0.00021373,2]
[365240780,1749561041489,-500.0,0.00021373,2]
[365240781,1749561041499,-500.0,0.00021373,2]
[365240782,1749561041508,-278.99308216,0.00021373,2]
[365240783,1749561041518,-260.52156839,0.00021373,2]
[365240784,1749561041528,-500.0,0.00021373,2]
[365240785,1749561041538,-500.0,0.00021373,2]
[365240786,1749561041549,-500.0,0.00021373,2]
[365240787,1749561041559,-505.27904086,0.00021373,2]
[365240788,1749561041569,-500.0,0.00021373,2]
[365240789,1749561041579,-500.0,0.00021373,2]
[365240790,1749561041589,-500.0,0.00021373,2]
[365240791,1749561041599,-500.0,0.00021373,2]
[365240792,1749561041609,-500.0,0.00021373,2]
[365240793,1749561041619,-500.0,0.00021373,2]
[365240794,1749561041629,-500.0,0.00021373,2]
[365240795,1749561041640,-500.0,0.00021373,2]
[365240796,1749561041649,-260.12215754,0.00021373,2]
[365240797,1749561041660,-500.0,0.00021373,2]
[365240798,1749561041669,-199.00046439,0.00021397,4]
[365240799,1749561041679,-151.0,0.00021397,4]
[365240800,1749561041689,-500.0,0.00021397,4]
[365240801,1749561041698,-500.0,0.00021397,4]
[365240802,1749561041708,-151.0,0.00021397,4]
[365240803,1749561041718,-500.0,0.00021397,4]
[365240804,1749561041727,-199.73141167,0.00021397,4]
[365240805,1749561041738,-199.88343692,0.00021397,4]
[365240806,1749561041748,-203.3482826,0.00021397,4]
[365240807,1749561041758,-198.68262952,0.00021397,4]
[365240808,1749561041768,-500.0,0.00021397,4]
[365240809,1749561041778,-2899.63406676,0.00021406,2]
[365240810,1749561041787,-245.0,0.00021424,4]
[365240811,1749561041796,-500.0,0.00021424,4]
[365240812,1749561041806,-500.0,0.00021424,4]
[365240813,1749561041815,-151.0,0.00021424,4]
[365240814,1749561041824,-360.2077657,0.00021424,4]
[365240815,1749561041833,-506.91527344,0.00021424,4]
[365240816,1749561041843,-500.0,0.00021452,4]
[365240817,1749561041853,-500.0,0.00021452,4]
[365240818,1749561041862,-151.0,0.00021452,4]
[365240819,1749561041872,-1047.60775708,0.00021452,5]
[365240820,1749561041882,-500.0,0.00021479,4]
[365240821,1749561041891,-245.0,0.00021479,4]
[365240822,1749561041901,-57115.0,0.000215,30]
[365240823,1749561041910,-315.18454239,0.000215,30]
[365240824,1749561041919,-11858.11761888,0.000215,30]
[365240825,1749561041929,-173.70319592,0.00021506,4]
[365240826,1749561041938,-2899.63406676,0.00021543,2]
[365240827,1749561041947,-420.0,0.00021551,2]
[365240828,1749561041957,-1047.60775708,0.0002159,5]
[365240829,1749561041966,-1000.0,0.00021621,2]
[365240830,1749561041975,-500.0,0.00021621,2]
[365240831,1749561041984,-1000.0,0.00021621,2]
[365240832,1749561041993,-871.31392064,0.00021621,2]
[365240833,1749561042003,-1000.0,0.00021621,2]
[365240834,1749561042012,-1000.0,0.00021621,2]
[365240835,1749561042022,-218.21942738,0.00021621,2]
[365240836,1749561042031,-1000.0,0.00021621,2]
[365240837,1749561042041,-1000.0,0.00021621,2]
[365240838,1749561042051,-500.0,0.00021621,2]
[365240839,1749561042060,-517.08068501,0.00021621,2]
[365240840,1749561042070,-500.0,0.00021621,2]
[365240841,1749561042080,-406.26725662,0.00021643,4]
[365240842,1749561042090,-460.0,0.00021643,4]
[365240843,1749561042099,-460.0,0.00021643,4]
[365240844,1749561042108,-460.0,0.00021643,4]
[365240845,1749561042118,-362.44220295,0.00021643,4]
[365240846,1749561042128,-400.0,0.00021643,4]
[365240847,1749561042140,-460.0,0.00021643,4]
[365240848,1749561042150,-460.0,0.00021643,4]
[365240849,1749561042159,-222.34964914,0.00021643,4]
[365240850,1749561042170,-460.0,0.00021643,4]
[365240851,1749561042179,-460.0,0.00021643,4]
[365240852,1749561042188,-171.71339719,0.00021643,4]
[365240853,1749561042198,-460.0,0.00021643,4]
[365240854,1749561042209,-460.0,0.00021643,4]
[365240855,1749561042219,-460.0,0.00021643,4]
[365240856,1749561042228,-548.64,0.00021643,4]
[365240857,1749561042237,-457.4490882,0.00021643,4]
[365240858,1749561042246,-460.0,0.00021643,4]
[365240859,1749561042255,-460.0,0.00021643,4]
[365240860,1749561042265,-460.0,0.00021643,4]
[365240861,1749561042274,-380.0,0.00021643,4]
[365240862,1749561042284,-460.0,0.00021643,4]
[365240864,1749561042293,-743.81,0.00021643,4]
[365240866,1749561042303,-460.0,0.00021643,4]
[365240868,1749561042312,-380.0,0.00021643,4]
[365240869,1749561042321,-460.0,0.00021643,4]
[365240870,1749561042330,-460.0,0.00021643,4]
[365240871,1749561042341,-460.0,0.00021643,4]
[365240872,1749561042349,-460.0,0.00021643,4]
[365240873,1749561042358,-157.93562872,0.00021643,2]
[365240875,1749561042367,-460.0,0.00021643,4]
[365240877,1749561042376,-380.0,0.00021643,4]
[365240879,1749561042385,-172.53651973,0.00021643,4]
[365240880,1749561042394,-460.0,0.00021643,4]
[365240883,1749561042403,-460.0,0.00021643,4]
[365240884,1749561042412,-460.0,0.00021643,4]
[365240885,1749561042422,-460.0,0.00021643,4]
[365240886,1749561042431,-380.0,0.00021643,4]
[365240887,1749561042440,-460.0,0.00021643,4]
[365240888,1749561042449,-460.0,0.00021643,4]
[365240889,1749561042459,-460.0,0.00021643,4]
[365240890,1749561042468,-382.50882578,0.00021643,4]
[365240892,1749561042477,-460.0,0.00021643,4]
[365240894,1749561042486,-460.0,0.00021643,4]
[365240896,1749561042495,-234.15190336,0.00021643,4]
[365240898,1749561042505,-460.0,0.00021643,4]
[365240900,1749561042515,-460.0,0.00021643,4]
[365240902,1749561042525,-460.0,0.00021643,4]
[365240903,1749561042534,-460.0,0.00021643,4]
[365240904,1749561042544,-460.0,0.00021643,4]
[365240905,1749561042556,-460.0,0.00021643,4]
[365240906,1749561042566,-460.0,0.00021643,4]
[365240907,1749561042576,-525.37569768,0.00021643,4]
[365240908,1749561042585,-460.0,0.00021643,4]
[365240909,1749561042595,-390.0,0.00021643,4]
[365240910,1749561042604,-380.0,0.00021643,4]
[365240911,1749561042613,-460.0,0.00021643,4]
[365240912,1749561042622,-460.0,0.00021643,4]
[365240913,1749561042632,-460.0,0.00021643,4]
[365240914,1749561042641,-460.0,0.00021643,4]
[365240915,1749561042650,-330.0,0.00021643,4]
[365240916,1749561042660,-460.0,0.00021643,4]
[365240917,1749561042846,-460.0,0.00021643,4]
[365240918,1749561042858,-460.0,0.00021643,4]
[365240919,1749561042867,-460.0,0.00021643,4]
[365240920,1749561042877,-500.0,0.00021643,4]
[365240921,1749561042886,-360.0,0.00021643,4]
[365240922,1749561042895,-460.0,0.00021643,4]
[365240923,1749561042904,-267.1825172,0.00021643,4]
[365240924,1749561042913,-460.0,0.00021643,4]
[365240925,1749561042922,-460.0,0.00021643,4]
[365240926,1749561042932,-460.0,0.00021643,4]
[365240927,1749561042941,-460.0,0.00021643,4]
[365240928,1749561042951,-460.0,0.00021643,4]
[365240929,1749561042960,-460.0,0.00021643,4]
[365240930,1749561042969,-460.0,0.00021643,4]
[365240931,1749561042978,-167.78000385,0.00021643,4]
[365240932,1749561042987,-460.0,0.00021643,4]
[365240933,1749561042997,-971.69,0.00021643,4]
[365240934,1749561043006,-556.97,0.00021643,4]
[365240935,1749561043015,-460.0,0.00021643,4]
[365240936,1749561043024,-460.0,0.00021643,4]
[365240937,1749561043033,-460.0,0.00021643,4]
[365240938,1749561043043,-460.0,0.00021643,4]
[365240939,1749561043052,-460.0,0.00021643,4]
[365240940,1749561043061,-460.0,0.00021643,4]
[365240941,1749561043070,-734.77,0.00021643,4]
[365240942,1749561043079,-460.0,0.00021643,4]
[365240943,1749561043089,-460.0,0.00021643,4]
[365240944,1749561043099,-460.0,0.00021643,4]
[365240945,1749561043107,-460.0,0.00021643,4]
[365240946,1749561043117,-460.0,0.00021643,4]
[365240947,1749561043134,-460.0,0.00021643,4]
[365240948,1749561043143,-367.6122997,0.00021643,4]
[365240949,1749561043152,-460.0,0.00021643,4]
[365240950,1749561043162,-801.41,0.00021643,4]
[365240951,1749561043172,-460.0,0.00021643,4]
[365240952,1749561043181,-1316.66,0.00021643,4]
[365240953,1749561043191,-460.0,0.00021643,4]
[365240954,1749561043201,-380.0,0.00021643,4]
[365240955,1749561043211,-1658.85,0.00021643,4]
[365240956,1749561043220,-460.0,0.00021643,4]
[365240957,1749561043230,-460.0,0.00021643,4]
[365240958,1749561043239,-460.0,0.00021643,4]
[365240959,1749561043248,-1213.09,0.00021643,4]
[365240960,1749561043258,-460.0,0.00021643,4]
[365240961,1749561043266,-400.98032784,0.00021643,4]
[365240962,1749561043276,-360.0,0.00021643,4]
[365240963,1749561043286,-460.0,0.00021643,4]
[365240964,1749561043295,-460.0,0.00021643,4]
[365240965,1749561043305,-386.88378306,0.00021643,2]
[365240966,1749561043315,-514.93,0.00021643,4]
[365240967,1749561043324,-500.0,0.00021643,4]
[365240968,1749561043333,-460.0,0.00021643,4]
[365240969,1749561043342,-1402.9,0.00021643,4]
[365240970,1749561043351,-460.0,0.00021643,4]
[365240971,1749561043360,-342.14020553,0.00021643,4]
[365240972,1749561043369,-460.0,0.00021643,4]
[365240973,1749561043378,-460.0,0.00021643,4]
[365240974,1749561043387,-460.0,0.00021643,4]
[365240975,1749561043396,-460.0,0.00021643,4]
[365240976,1749561043405,-460.0,0.00021643,4]
[365240977,1749561043414,-180.83,0.00021643,4]
[365240978,1749561043423,-460.0,0.00021643,4]
[365240979,1749561043432,-460.0,0.00021643,4]
[365240980,1749561043441,-460.0,0.00021643,4]
[365240981,1749561043451,-476.21,0.00021643,4]
[365240982,1749561043461,-460.0,0.00021643,4]
[365240983,1749561043470,-460.0,0.00021643,4]
[365240984,1749561043480,-570.54,0.00021643,4]
[365240985,1749561043488,-462.2,0.00021643,4]
[365240986,1749561043498,-460.0,0.00021643,4]
[365240987,1749561043507,-373.52,0.00021643,4]
[365240988,1749561043517,-460.0,0.00021643,4]
[365240989,1749561043526,-2814.84,0.00021643,4]
[365240990,1749561043536,-460.0,0.00021643,4]
[365240991,1749561043546,-460.0,0.00021643,4]
[365240992,1749561043556,-460.0,0.00021643,4]
[365240993,1749561043566,-1561.2,0.00021643,4]
[365240994,1749561043576,-460.0,0.00021643,4]
[365240995,1749561043585,-460.0,0.00021643,4]
[365240996,1749561043595,-460.0,0.00021643,4]
[365240997,1749561043604,-460.0,0.00021643,4]
[365240998,1749561043613,-460.0,0.00021643,4]
[365240999,1749561043623,-460.0,0.00021643,4]
[365241000,1749561043632,-460.0,0.00021643,4]
[365241001,1749561043642,-572.65,0.00021643,4]
[365241002,1749561043652,-460.0,0.00021643,4]
[365241003,1749561043661,-3102.55,0.00021643,4]
[365241004,1749561043671,-460.0,0.00021643,4]
[365241005,1749561043680,-460.0,0.00021643,4]
[365241006,1749561043689,-1032.23,0.00021643,4]
[365241007,1749561043699,-460.0,0.00021643,4]
[365241008,1749561043708,-460.0,0.00021643,4]
[365241009,1749561043717,-460.0,0.00021643,4]
[365241010,1749561043727,-460.0,0.00021643,4]
[365241011,1749561043736,-691.63,0.00021643,4]
[365241012,1749561043746,-2508.23,0.00021643,4]
[365241013,1749561043756,-460.0,0.00021643,4]
[365241014,1749561043766,-460.0,0.00021643,4]
[365241015,1749561043775,-372.86358554,0.00021643,4]
[365241016,1749561043785,-460.0,0.00021643,4]
[365241017,1749561043798,-1142.03,0.00021643,4]
[365241018,1749561043808,-460.0,0.00021643,4]
[365241019,1749561043818,-232.48,0.00021643,4]
[365241020,1749561043828,-764.17,0.00021643,4]
[365241021,1749561043838,-2970.71,0.00021643,4]
[365241022,1749561043848,-460.0,0.00021643,4]
[365241023,1749561043858,-460.0,0.00021643,4]
[365241024,1749561043867,-460.0,0.00021643,4]
[365241025,1749561043877,-2964.47,0.00021643,4]
[365241026,1749561043887,-1685.96,0.00021643,4]
[365241027,1749561043897,-603.4,0.00021643,4]
[365241028,1749561043906,-270.22492835,0.00021643,4]
[365241030,1749561043915,-741.45,0.00021643,2]
[365241032,1749561043925,-460.0,0.00021643,4]
[365241034,1749561043935,-460.0,0.00021643,4]
[365241036,1749561043945,-254.40680792,0.00021643,4]
[365241038,1749561043955,-460.0,0.00021643,4]
[365241040,1749561043964,-657.06,0.00021643,4]
[365241042,1749561043974,-460.0,0.00021643,4]
[365241044,1749561043984,-460.0,0.00021643,4]
[365241046,1749561043994,-460.0,0.00021643,4]
[365241048,1749561044003,-460.0,0.00021643,4]
[365241050,1749561044013,-460.0,0.00021643,4]
[365241053,1749561044025,-1753.44,0.00021643,4]
[365241055,1749561044034,-460.0,0.00021643,4]
[365241057,1749561044044,-417.12849798,0.00021643,4]
[365241059,1749561044054,-460.0,0.00021643,4]
[365241061,1749561044064,-460.0,0.00021643,4]
[365241063,1749561044074,-500.0,0.00021673,2]
[365241065,1749561044083,-500.75532797,0.00021673,2]
[365241067,1749561044093,-500.0,0.00021673,2]
[365241069,1749561044103,-500.0,0.00021673,2]
[365241071,1749561044112,-469.70180892,0.00021673,2]
[365241073,1749561044123,-500.0,0.00021673,2]
[365241075,1749561044135,-500.0,0.00021673,2]
[365241077,1749561044144,-600.0,0.00021673,2]
[365241079,1749561044154,-500.0,0.00021673,2]
[365241081,1749561044164,-420.0,0.00021677,2]
[365241083,1749561044174,-160.0,0.00021706,2]
[365241085,1749561044184,-160.0,0.00021706,2]
[365241087,1749561044193,-160.0,0.00021706,2]
[365241089,1749561044202,-160.0,0.00021706,2]
[365241091,1749561044211,-213.1263252,0.00021706,2]
[365241093,1749561044220,-424.12530924,0.00021706,2]
[365241095,1749561044230,-834.9046531,0.00021706,2]
[365241097,1749561044239,-160.0,0.00021706,2]
[365241098,1749561044249,-842.5625,0.00021706,2]
[365241101,1749561044258,-160.0,0.00021706,2]
[365241103,1749561044268,-3700.77,0.00021711,2]
[365241105,1749561044278,-1047.60775708,0.00021728,5]
[365241107,1749561044287,-151.0,0.000218,4]
[365241108,1749561044297,-1047.60775708,0.00021866,6]
[365241111,1749561044308,-151.0,0.000219,4]
[365241113,1749561044317,-16000.0,0.00021903,2]
[365241114,1749561044326,-460.0,0.00021917,4]
[365241116,1749561044336,-460.0,0.00021917,4]
[365241119,1749561044346,-460.0,0.00021917,4]
[365241120,1749561044356,-460.0,0.00021917,4]
[365241123,1749561044365,-460.0,0.00021917,4]
[365241125,1749561044375,-460.0,0.00021917,4]
[365241127,1749561044384,-460.0,0.00021917,4]
[365241129,1749561044394,-460.0,0.00021917,4]
[365241130,1749561044403,-460.0,0.00021917,4]
[365241132,1749561044413,-460.0,0.00021917,4]
[365241134,1749561044422,-548.64,0.00021917,4]
[365241136,1749561044432,-460.0,0.00021917,4]
[365241138,1749561044441,-460.0,0.00021917,4]
[365241140,1749561044451,-460.0,0.00021917,4]
[365241142,1749561044460,-539.6935917,0.00021917,4]
[365241145,1749561044470,-743.81,0.00021917,4]
[365241147,1749561044480,-454.06957544,0.00021917,4]
[365241149,1749561044490,-460.0,0.00021917,4]
[365241151,1749561044500,-499.98064696,0.00021917,4]
[365241153,1749561044509,-460.0,0.00021917,4]
[365241155,1749561044518,-460.0,0.00021917,4]
[365241157,1749561044527,-460.0,0.00021917,4]
[365241158,1749561044536,-460.0,0.00021917,4]
[365241160,1749561044546,-460.0,0.00021917,4]
[365241163,1749561044557,-446.93897582,0.00021917,4]
[365241164,1749561044567,-460.0,0.00021917,4]
[365241166,1749561044577,-342.42,0.00021917,4]
[365241168,1749561044586,-460.0,0.00021917,4]
[365241171,1749561044596,-460.0,0.00021917,4]
[365241173,1749561044606,-460.0,0.00021917,4]
[365241175,1749561044615,-460.0,0.00021917,4]
[365241177,1749561044625,-460.0,0.00021917,4]
[365241179,1749561044634,-460.0,0.00021917,4]
[365241181,1749561044644,-460.0,0.00021917,4]
[365241183,1749561044653,-460.0,0.00021917,4]
[365241185,1749561044663,-460.0,0.00021917,4]
[365241187,1749561044673,-460.0,0.00021917,4]
[365241189,1749561044682,-460.0,0.00021917,4]
[365241191,1749561044691,-460.0,0.00021917,4]
[365241193,1749561044701,-460.0,0.00021917,4]
[365241195,1749561044710,-500.0,0.00021917,2]
[365241197,1749561044719,-460.0,0.00021917,4]
[365241199,1749561044729,-360.0,0.00021917,4]
[365241201,1749561044739,-460.0,0.00021917,4]
[365241203,1749561044748,-460.0,0.00021917,4]
[365241205,1749561044758,-460.0,0.00021917,4]
[365241207,1749561044768,-156.95776634,0.00021917,4]
[365241209,1749561044777,-340.0,0.00021917,4]
[365241211,1749561044786,-506.17206728,0.00021917,4]
[365241213,1749561044796,-460.0,0.00021917,4]
[365241215,1749561044806,-460.0,0.00021917,4]
[365241217,1749561044815,-460.0,0.00021917,4]
[365241219,1749561044825,-380.0,0.00021917,4]
[365241221,1749561044834,-460.0,0.00021917,4]
[365241223,1749561044844,-460.0,0.00021917,4]
[365241225,1749561044854,-460.0,0.00021917,4]
[365241227,1749561044863,-370.0,0.00021917,4]
[365241229,1749561044872,-460.0,0.00021917,4]
[365241231,1749561044882,-971.69,0.00021917,4]
[365241233,1749561044891,-556.97,0.00021917,4]
[365241235,1749561044901,-460.0,0.00021917,4]
[365241237,1749561044910,-460.0,0.00021917,4]
[365241239,1749561044920,-380.0,0.00021917,4]
[365241241,1749561044929,-460.0,0.00021917,4]
[365241243,1749561044938,-460.0,0.00021917,4]
[365241245,1749561044948,-460.0,0.00021917,4]
[365241247,1749561044957,-734.77,0.00021917,4]
[365241249,1749561044966,-460.0,0.00021917,4]
[365241251,1749561044975,-360.0,0.00021917,4]
[365241253,1749561044985,-460.0,0.00021917,4]
[365241255,1749561044994,-486.02810468,0.00021917,4]
[365241257,1749561045003,-460.0,0.00021917,4]
[365241259,1749561045013,-460.0,0.00021917,4]
[365241260,1749561045022,-460.0,0.00021917,4]
[365241263,1749561045032,-801.41,0.00021917,4]
[365241264,1749561045041,-370.0,0.00021917,4]
[365241267,1749561045051,-1316.66,0.00021917,4]
[365241269,1749561045061,-460.0,0.00021917,4]
[365241271,1749561045070,-1658.85,0.00021917,4]
[365241273,1749561045080,-460.0,0.00021917,4]
[365241275,1749561045090,-460.0,0.00021917,4]
[365241277,1749561045099,-460.0,0.00021917,4]
[365241279,1749561045108,-1213.09,0.00021917,4]
[365241281,1749561045118,-460.0,0.00021917,4]
[365241283,1749561045128,-460.0,0.00021917,4]
[365241284,1749561045139,-460.0,0.00021917,4]
[365241287,1749561045149,-514.93,0.00021917,4]
[365241288,1749561045158,-500.0,0.00021917,4]
[365241290,1749561045168,-460.0,0.00021917,4]
[365241293,1749561045178,-1402.9,0.00021917,4]
[365241294,1749561045188,-460.0,0.00021917,4]
[365241296,1749561045197,-460.0,0.00021917,4]
[365241298,1749561045207,-460.0,0.00021917,4]
[365241300,1749561045216,-460.0,0.00021917,4]
[365241302,1749561045225,-460.0,0.00021917,4]
[365241304,1749561045235,-460.0,0.00021917,4]
[365241306,1749561045245,-460.0,0.00021917,4]
[365241308,1749561045254,-460.0,0.00021917,4]
[365241311,1749561045264,-460.0,0.00021917,4]
[365241313,1749561045273,-476.21,0.00021917,4]
[365241315,1749561045283,-460.0,0.00021917,4]
[365241317,1749561045292,-460.0,0.00021917,4]
[365241319,1749561045302,-500.0,0.00021917,4]
[365241321,1749561045311,-500.0,0.00021917,4]
[365241323,1749561045321,-500.0,0.00021917,4]
[365241325,1749561045330,-500.0,0.00021917,4]
[365241327,1749561045339,-570.54,0.00021917,4]
[365241329,1749561045348,-462.2,0.00021917,4]
[365241331,1749561045358,-460.0,0.00021917,4]
[365241333,1749561045367,-460.0,0.00021917,4]
[365241335,1749561045377,-2814.84,0.00021917,4]
[365241337,1749561045386,-460.0,0.00021917,4]
[365241339,1749561045396,-460.0,0.00021917,4]
[365241341,1749561045405,-460.0,0.00021917,4]
[365241343,1749561045414,-1561.2,0.00021917,4]
[365241345,1749561045424,-460.0,0.00021917,4]
[365241347,1749561045434,-460.0,0.00021917,4]
[365241350,1749561045443,-460.0,0.00021917,4]
[365241352,1749561045452,-460.0,0.00021917,4]
[365241354,1749561045461,-460.0,0.00021917,4]
[365241356,1749561045471,-460.0,0.00021917,4]
[365241358,1749561045482,-460.0,0.00021917,4]
[365241360,1749561045491,-572.65,0.00021917,4]
[365241362,1749561045500,-460.0,0.00021917,4]
[365241364,1749561045510,-3102.55,0.00021917,4]
[365241366,1749561045519,-460.0,0.00021917,4]
[365241368,1749561045529,-460.0,0.00021917,4]
[365241370,1749561045538,-1032.23,0.00021917,4]
[365241372,1749561045547,-460.0,0.00021917,4]
[365241374,1749561045557,-460.0,0.00021917,4]
[365241376,1749561045566,-293.62881099,0.00021917,4]
[365241378,1749561045576,-460.0,0.00021917,4]
[365241380,1749561045586,-691.63,0.00021917,4]
[365241382,1749561045595,-2508.23,0.00021917,4]
[365241384,1749561045604,-460.0,0.00021917,4]
[365241386,1749561045613,-217.61919221,0.00021917,4]
[365241388,1749561045623,-460.0,0.00021917,4]
[365241390,1749561045633,-1142.03,0.00021917,4]
[365241392,1749561045642,-460.0,0.00021917,4]
[365241394,1749561045651,-2970.71,0.00021917,4]
[365241396,1749561045661,-764.17,0.00021917,4]
[365241398,1749561045670,-460.0,0.00021917,4]
[365241400,1749561045680,-460.0,0.00021917,4]
[365241402,1749561045689,-460.0,0.00021917,4]
[365241404,1749561045698,-2964.47,0.00021917,4]
[365241406,1749561045708,-1685.96,0.00021917,4]
[365241408,1749561045717,-603.4,0.00021917,4]
[365241410,1749561045726,-741.45,0.00021917,2]
[365241412,1749561045736,-460.0,0.00021917,4]
[365241414,1749561045746,-460.0,0.00021917,4]
[365241416,1749561045756,-460.0,0.00021917,4]
[365241418,1749561045766,-657.06,0.00021917,4]